Cogmind - Beta 16.1 @@@ ROGUE MODE // 2026.02.22 @ 14:40:44 Player: Zish Result: Destroyed by G-34 Mercenary with Small Laser Performance ------------- Evolutions (0) 0 Regions Visited (1) 200 Robots Destroyed (12) 60 Value Destroyed (371) 371 Prototype IDs (0) 0 Alien Tech Used (0) 0 Bonus (0) 0 TOTAL SCORE: 631 Bonus ------- None Cogmind --------- Core Integrity 0/250 Matter 300/300 Energy 100/100 System Corruption 0% Temperature Cool (12) Movement Treading (400) Ox3 Location -10/Materials Parts ------- > --- POWER (1) -------- (None) > --- PROPULSION (2) --- Light Treads > --- UTILITY (2) ------ Huge Storage Unit > --- WEAPON (2) ------- (None) > --- INVENTORY (25) --- Light Ion Engine Light Nuclear Core Light Treads Light Treads Light Treads Light Treads Light Treads Light Treads Light Treads Peak State ------------ > --- POWER ------------ Light Nuclear Core > --- PROPULSION ------- Light Treads Light Treads > --- UTILITY ---------- Huge Storage Unit Light Armor Plating > --- WEAPON ----------- Light Assault Rifle Light Assault Rifle > --- INVENTORY -------- Light Ion Engine Light Nuclear Core Light Treads Light Treads Light Treads Light Treads Light Treads Light Treads Light Treads Light Treads [Rating: 10] Favorites ----------- Power Light Ion Engine Engine Light Ion Engine Power Core Light Nuclear Core Propulsion Light Treads Treads Light Treads Utility Huge Storage Unit Storage Huge Storage Unit Protection Light Armor Plating Weapon Light Assault Rifle Energy Gun Small Laser Ballistic Gun Light Assault Rifle Build | -11 -10 ------- Run | Yrd Mat Slots Evolved . | . . Power . | . . Propulsion . | . . Utility . | . . Weapon . | . . Parts Attached 12 | 6 6 Power 2 | 1 1 Engine 1 | 1 . Core 1 | . 1 Reactor . | . . Propulsion 3 | 2 1 Treads 3 | 2 1 Leg . | . . Wheel . | . . Hover . | . . Flight . | . . Utility 4 | 1 3 Device . | . . Storage 3 | 1 2 Processor . | . . Hackware . | . . Protection 1 | . 1 Artifact . | . . Weapon 3 | 2 1 Energy Gun 1 | 1 . Energy Cannon . | . . Ballistic Gun 2 | 1 1 Ballistic Cannon . | . . Launcher . | . . Special Weapon . | . . Impact Weapon . | . . Slashing Weapon . | . . Piercing Weapon . | . . Special Melee Weapon . | . . Unidentified Prototypes . | . . Parts Lost 8 | . 8 Power 2 | . 2 Propulsion 2 | . 2 Utility 2 | . 2 Weapon 2 | . 2 Highest Loss Streak 4 | . 4 To Critical Strikes . | . . Average Backups 7 | . 8 Power 1 | . 2 Propulsion 5 | . 6 Utility . | . . Weapon . | . . Tool/Special . | . . Unused Backups 9 | . 9 Power 2 | . 2 Propulsion 7 | . 7 Utility . | . . Weapon . | . . Tool/Special . | . . Average Slot Usage (%) 87 | . 87 Engine 9 | . 9 Core 3 | . 3 Treads 26 | . 26 Storage 14 | . 14 Protection 7 | . 7 Energy Gun 6 | . 6 Ballistic Gun 17 | . 17 Peak Build Rating 10 | 6 10 Average Rating 7 | 4 7 On Entrance 3 | . 6 Avg Prop Armor Cover (%) . | . . Naked Turns . | . . Heaviest Build 88 | 10 88 Greatest Support 40 | 40 40 Greatest Overweight (x) 4 | . 4 Average Overweight (x) 1 | . 1 Largest Inventory Capacity 25 | 8 25 Average Capacity 20 | 7 22 Most Carried 11 | 1 11 Average Carried 7 | . 8 Final Capacity 25 | 8 25 Final Carried 9 | 1 9 Class Distribution -------------------- 100% | Mutant Dominant Class ---------------- Mutant | -10/Materials Resources | -11 -10 ----------- Run | Yrd Mat Matter Collected 415 | 219 196 Remotely . | . . Salvage Created 597 | 69 528 Parts 27 | 1 26 Haulers Intercepted . | . . Recyclers Shooed 2 | . 2 Parts Field Recycled . | . . Retrieved Matter . | . . Parts Self-Destructed . | . . Prevented . | . . Parts Restored . | . . Kills | -11 -10 ------- Run | Yrd Mat Combat Hostiles Destroyed 9 | . 9 Guns 9 | . 9 Classes Destroyed 3 | 1 2 Worker 1 | . 1 Recycler 2 | 1 1 Grunt 9 | . 9 Best Kill Streak 2 | 1 2 Combat Bots Only 2 | . 2 Max Kills in Single Turn 1 | 1 1 Gunslinging . | . . Exploded . | . . Melee . | . . Uniques/NPCs Destroyed . | . . Combat | -11 -10 -------- Run | Yrd Mat Hostile Shots Fired 122 | . 122 Missed 24 | . 24 Hits 98 | . 98 Projectile 98 | . 98 Critical Strikes 2 | . 2 Damage Taken 1200 | . 1200 Core 258 | . 258 Absorbed by Shields . | . . Core Remaining (%) 100 | 100 . Volleys Fired 71 | 5 66 Largest 2 | 2 2 Hottest 60 | 60 60 Shots Fired 133 | 10 123 Gun 133 | 10 123 Cannon . | . . Launcher . | . . Special . | . . Kinetic 100 | 5 95 Thermal 33 | 5 28 Explosive . | . . Electromagnetic . | . . Robot Hit Streak 12 | 3 12 Robot Miss Streak 3 | 1 3 Penetration Max . | . . Secondary Targets . | . . Shots Hit Robots 96 | 6 90 Core Hits 36 | 2 34 Critical Kills . | . . Critical Parts Destroyed . | . . Critical Strikes . | . . Melee Attacks . | . . Impact . | . . Slashing . | . . Piercing . | . . Sneak Attacks . | . . Combat Hostiles . | . . Follow-up Attacks . | . . Damage Inflicted 864 | 56 808 Guns 840 | 56 784 Cannons . | . . Explosions . | . . Melee . | . . Ramming 24 | . 24 Kinetic 604 | 23 581 Thermal 236 | 33 203 Explosive . | . . Electromagnetic . | . . Impact . | . . Slashing . | . . Piercing . | . . Highest Corruption . | . . Average Corruption . | . . Corruption Purged . | . . Corruption Blocked . | . . Overload Shots . | . . Overflow Damage . | . . Projectiles . | . . Explosions . | . . Melee . | . . Knockbacks . | . . Impact . | . . Kinetic . | . . Secondary . | . . Self-Inflicted Damage . | . . Shots . | . . Rammed 12 | . 12 Targets Rammed 12 | . 12 Kicked . | . . Crushed . | . . Highest Temperature 168 | 40 168 Average Temperature 40 | 17 42 Received Heat Transfer 717 | . 717 Siege Activations . | . . Martial Activations . | . . Shielding Activations . | . . Robots Disrupted . | . . Combat Hostiles . | . . Robots Corrupted . | . . Combat Hostiles . | . . Parts Fried . | . . Impact Corruptions . | . . Robots Melted . | . . Combat Hostiles . | . . Parts Melted . | . . Heat Transferred 550 | 75 475 Parts Sabotaged . | . . Parts Stolen . | . . Parts Stripped . | . . Power Chain Reactions . | . . Alert | -11 -10 ------- Run | Yrd Mat Maximum Alert Level . | . . Low Security (%) 100 | 100 100 Level 1 . | . . Level 2 . | . . Level 3 . | . . Level 4 . | . . Level 5 . | . . High Security . | . . Max Security . | . . Peak Influence 64 | 5 64 Initial . | . . Average 18 | . 20 Influence Increases 326 | 5 321 Destroy 0b10 Robot/C 180 | . 180 Destroy 0b10 Robot/NC 15 | 5 10 Destroy Leader 60 | . 60 Successful Hack 11 | . 11 Lose Combat Pursuer 60 | . 60 Influence Decreases 326 | 5 321 Time Decay 255 | 5 250 Lost Part 71 | . 71 Squads Dispatched 2 | . 2 Investigation 1 | . 1 Extermination . | . . Reinforcement 1 | . 1 Assault . | . . Garrison . | . . Intercept . | . . Searches Triggered . | . . Construction Impeded . | . . Haulers Reinforced . | . . Active Scanning Responses . | . . Cargo Convoy Interrupts . | . . Stealth | -11 -10 --------- Run | Yrd Mat Distress Signals 1 | . 1 Communications Jammed . | . . Distress Signals . | . . Times Spotted 19 | . 19 Peak Tracking Total 3 | . 3 Tactical Retreats 4 | . 4 Traps | -11 -10 ------- Run | Yrd Mat Traps Triggered . | . . Indirectly . | . . Trap Hack Attempts . | . . Triggered . | . . Disarmed . | . . Reprogrammed . | . . Reused . | . . Traps Extracted . | . . Installed . | . . Triggered . | . . Machines | -11 -10 ---------- Run | Yrd Mat Machines Disabled . | . . Max in Single Turn . | . . Machines Repaired . | . . Machines Dismantled . | . . Machines Sabotaged . | . . Overloaded Fab Kills . | . . Hacking | -11 -10 --------- Run | Yrd Mat Machines Accessed 2 | . 2 Terminals 1 | . 1 Fabricators . | . . Repair Stations 1 | . 1 Recycling Units . | . . Scanalyzers . | . . Garrison Access . | . . Total Hacks 7 | . 7 Successful 3 | . 3 Failed 4 | . 4 Catastrophic . | . . Database Lockouts . | . . Manual . | . . Terminals 4 | . 4 Fabricators . | . . Repair Stations 3 | . 3 Recycling Units . | . . Scanalyzers . | . . Garrison Access . | . . Terminal Hacks 2 | . 2 Investigation Status 1 | . 1 Reinforcement Status 1 | . 1 Fabricator Hacks . | . . Repair Station Hacks 1 | . 1 Refit 1 | . 1 Recycling Unit Hacks . | . . Scanalyzer . | . . Garrison Access Hacks . | . . Unauthorized Hacks . | . . Terminals . | . . Fabricators . | . . Repair Stations . | . . Recycling Units . | . . Scanalyzers . | . . Garrison Access . | . . Data Cores Recovered . | . . Used . | . . Hacking Detections 2 | . 2 Full Trace Events 1 | . 1 Feedback Events . | . . Feedback Blocked . | . . Robot Schematics Acquired . | . . Robots Built . | . . Authchips . | . . Time . | . . Total Robot Build Rating . | . . Part Schematics Acquired . | . . Parts Built . | . . Authchips . | . . Time . | . . Total Part Build Rating . | . . Part Studies Acquired . | . . Parts Repaired . | . . Time . | . . Parts Recycled . | . . Recycled Matter . | . . Retrieved Matter . | . . Retrieved Components . | . . Parts Scanalyzed . | . . Part Schematics Acquired . | . . Parts Damaged . | . . Bothacking | -11 -10 ------------ Run | Yrd Mat Used RIF Installer . | . . Robots Hacked . | . . Non-combat . | . . Combat . | . . Robot Hacks Applied . | . . Relay Couplers Released . | . . Fabnet Peak Effective % . | . . Robots Rewired . | . . Allies Hacked . | . . Hacks Repelled . | . . Allies | -11 -10 -------- Run | Yrd Mat Total Allies . | . . Largest Group . | . . Highest-Rated Group . | . . Highest-Rated Ally . | . . Total Orders . | . . Ally Attacks . | . . Total Damage . | . . Kills . | . . Allies Corrupted . | . . Allies Melted . | . . Intel | -11 -10 ------- Run | Yrd Mat Active Infowar (turns) . | . . Robot Analysis Total . | . . Derelict Logs Recovered . | . . Drone Launches . | . . Drone Recoveries . | . . Exploration | -11 -10 ------------- Run | Yrd Mat Turns Passed 1049 | 109 940 Spaces Moved 313 | 55 258 Core 2 | 2 . Treads 311 | 53 258 Legs . | . . Wheels . | . . Hover . | . . Flight . | . . Fastest Speed 50 | 50 160 Average Speed 247 | 156 266 Slowest Speed 480 | 160 480 Overloaded Moves . | . . Propulsion Burnouts . | . . Robots Hopped . | . . Potential Cave-ins . | . . Cave-ins Triggered . | . . Exploration Rate (%) 26 | 4 48 Regions Visited 1 Branch Regions . Pre-discovered Areas . | . . Known Exits Taken . | . . Unknown Exits Taken 1 | 1 . Scrap Searched . | . . Spaces Dug . | . . Terrain Destroyed . | . . Melee . | . . Projectile . | . . AOE . | . . Terrain Rammed . | . . Walls Destroyed . | . . Machines Disabled . | . . Actions | -11 -10 --------- Run | Yrd Mat Total 435 | 66 369 Wait 10 | . 10 Move 312 | 54 258 Hop . | . . Pick Up 11 | 1 10 Fast Attach 9 | 6 3 Attach 3 | . 3 Detach 3 | . 3 Swap 1 | . 1 Drop 3 | . 3 Fire 71 | 5 66 Melee . | . . Ram . | . . Kick . | . . Crush 12 | . 12 Escape Stasis . | . . Rewire . | . . Trap . | . . Miscellaneous . | . . Route ------- -11/Scrapyard -10/Materials (discovered 3 exits: [*Mat x2] / [*Min]) History --------- Turn | Location | Event 2 | -11/Scrapyard | Met Revision 17 18 | -11/Scrapyard | Discovered new exit (range 16) 110 | -11/Scrapyard | Entered Materials 188 | -10/Materials | Discovered new exit (range 11) 250 | -10/Materials | Discovered new exit (range 16) 306 | -10/Materials | Build established: Mutant 900 | -10/Materials | Discovered new exit (range 9) 1023 | -10/Materials | Core integrity fell below 50% 1045 | -10/Materials | Core integrity fell below 20% 1050 | -10/Materials | Destroyed by G-34 Mercenary with Small Laser Last Messages --------------- 00866_ Lgt. Treads destroyed. 00882_ Lgt. Assault Rifle destroyed. 00895_ G-47 Trooper destroyed. 00900_ Acquired 24 matter. 00900_ EXIT=FOUND 00935_ Connecting with Repair Station... >>Refit Scanning configuration... Attaching: Backup Plating I x1 00949_ K-01 Serf collects debris. 00970_ K-01 Serf cleans the Material Processor. 00982_ W-16 Scout sends out distress signal. 00994_ Lgt. Assault Rifle destroyed. 00996_ Lgt. Treads destroyed. 01000_ Slammed into G-34 Mercenary. 01006_ Lgt. Nuclear Core destroyed. 01010_ Slammed into G-34 Mercenary. 01026_ Backup Plating I destroyed. 01029_ Slammed into G-34 Mercenary. Map ----- +----------------------------------------------------+ | ?????????????????????????????????????????????????? | | ?????????????????????????????????????????????????? | | ?????????????????????????????????????????????????? | | ??????????????????????????????????????###????????? | | ?????????????????????????????????######T#####????? | | ?????????????????????????????????# # #????? | | ?????????????????????????????????# < # #????? | | ?????????????????????????????????# # " " #????? | | ?????????????????????????????????# + "R" #????? | | ??????????????????????############ # """ #????? | | ??????? ??????????????# """ ## # #????? | | ?????# ?????????????# """"" ## ########????? | | ?????# ????????????# """"" # #??????????? | | ?????? ????????????# """"" # #??????????? | | ??????? ???????????# """ +% #??????????? | | ???????# ???????????# # #??????????? | | ???????# ######?????# # ??????? | | ???????# #?????#% ############?????? | | ???????+ ^ +?????#+############?????????????? | | ???????# #?????#%#?# #?????????????? | | ???????# #?????#r#?# """ #?????????????? | | ???????# #######%###=""" #?????????????? | | ???????# "T" %%%#*""" #?????????????? | | ???????# g %+%! #?????????????? | | ???????# %#=""" "" #?????????????? | | ???######+####+####+###+#@# """ T" #?????????????? | | ???# [% ## g# """ "" #?????????????? | | ???# ! ## """""%# #?????????????? | | ???# %= ## """""=##########?????????????? | | ???# = ## """""%#??????????????????????? | | ???# ## =*#??????????????????????? | | ???# = ################????????????????? | | ???#######+######## # #????????????????? | | ????# % *!!! # #????????????????? | | ????# < *%!! / ! #????????????????? | | ????# ^ !!!! # #????????????????? | | ????## ^ #########????????????????? | | ?????# ###?????#######???????????? | | ?????# ""#?????# #???????????? | | ?????# ^ T"#?????# #???????????? | | ?????# """ """ ""#?????# #???????????? | | ?????# """ """ ###?????# #???????????? | | ?????# """ """ ######### #???????????? | | ?????# # ## ########????? | | ?????# # !! ## # ?????? | | ?????# """ """ # ! ## # ??????? | | ?????# """ """ # ## # ???????? | | ?????# """ """ # ! ## # #???????? | | ?????# # ## # #???????? | | ?????## % + ## # #???????? | +----------------------------------------------------+ Best States ------------- Heat Dissipation 25 Energy Generation 14 Energy Capacity 160 Matter Stores 300 Matter Capacity 300 Sight Range 16 Terrain Scan Density 10 Armor Coverage 150 Evasion (%) 40 Recoil Reduction 2 Item Schematics ----------------- None Robot Schematics ------------------ None Fabricated ------------ Nothing Repaired ---------- Nothing Studied --------- None Alien Tech Used ----------------- None Achievements -------------- You Again Challenges ------------ None Game ------ Seed VisualRocketMace Manual? 0 Play Time 00:08:59 Cumulative 25.8 hours Start 2026.02.22 @ 14:35:30 End 2026.02.22 @ 14:40:44 Sessions 1 Manual Loads 0 Difficulty Rogue Special Mode None Game No. 71 Rogue 71 Adventurer 0 Explorer 0 Win Type - Total 0 Types 0/0/0/0/0/0/0/0/0/0 Lore% 17 Gallery% 25 Achievement% 20 Wizard Run 0 Options --------- Layout 1 ASCII 0 Keyboard 1 Movement Vi Keybinds 0 Fullscreen 1 Font 24/Smallcaps Map View 50x35 Zoom Use 0% Tactical HUD 1 Map Filters NONE Filters NONE Steam 1 RUN: 5d9b9126-50fc-400b-bea6-f3c72316b7f0